[Event "Late-Titled-Tuesday-Blitz-October-24-2023"]
[Site "Chess.com"]
[Date "2023.10.24"]
[Round "4"]
[White "Likvidator228"]
[Black "Witik"]
[Result "0-1"]
[WhiteElo "2590"]
[BlackElo "2797"]
[TimeControl "180+1"]
[EndTime "14:39:40 PDT"]
[Termination "Witik won on time"]

1. d4 {[%clk 0:02:54.3]} 1... Nf6 {[%clk 0:02:59.3]} 2. c4 {[%clk 0:02:52.8]}
2... g6 {[%clk 0:02:59.6]} 3. Nc3 {[%clk 0:02:52.7]} 3... Bg7 {[%clk 0:03:00]}
4. e4 {[%clk 0:02:53.1]} 4... d6 {[%clk 0:03:00.6]} 5. f3 {[%clk 0:02:53.1]}
5... O-O {[%clk 0:03:00.8]} 6. Be3 {[%clk 0:02:53.3]} 6... c5 {[%clk 0:03:00.4]}
7. Nge2 {[%clk 0:02:52.7]} 7... Nc6 {[%clk 0:02:57.8]} 8. Qd2 {[%clk 0:02:50.7]}
8... Qa5 {[%clk 0:02:54.9]} 9. d5 {[%clk 0:02:43.3]} 9... Ne5 {[%clk 0:02:45.4]}
10. b3 {[%clk 0:02:18.7]} 10... a6 {[%clk 0:02:37.7]} 11. h3 {[%clk 0:01:35.5]}
11... b5 {[%clk 0:02:27]} 12. f4 {[%clk 0:01:35.8]} 12... b4 {[%clk 0:01:54.9]}
13. fxe5 {[%clk 0:01:34.6]} 13... bxc3 {[%clk 0:01:54.4]} 14. Qxc3 {[%clk
0:01:34.8]} 14... Qxc3+ {[%clk 0:01:50.1]} 15. Nxc3 {[%clk 0:01:34.6]} 15... Nd7
{[%clk 0:01:50.3]} 16. O-O-O {[%clk 0:01:19.1]} 16... Nxe5 {[%clk 0:01:47.9]}
17. Kc2 {[%clk 0:01:00.3]} 17... f5 {[%clk 0:01:43.8]} 18. Be2 {[%clk
0:00:45.7]} 18... f4 {[%clk 0:01:20.9]} 19. Bd2 {[%clk 0:00:45.6]} 19... f3
{[%clk 0:01:17]} 20. gxf3 {[%clk 0:00:42.3]} 20... Nxf3 {[%clk 0:01:17.3]} 21.
Bxf3 {[%clk 0:00:42.8]} 21... Rxf3 {[%clk 0:01:17.1]} 22. h4 {[%clk 0:00:33.7]}
22... Bg4 {[%clk 0:01:07.9]} 23. Rdf1 {[%clk 0:00:18.5]} 23... Raf8 {[%clk
0:01:06.9]} 24. Rxf3 {[%clk 0:00:18.6]} 24... Rxf3 {[%clk 0:01:06.8]} 25. Rg1
{[%clk 0:00:19.2]} 25... h5 {[%clk 0:01:06.9]} 26. Nd1 {[%clk 0:00:16.8]} 26...
Bd4 {[%clk 0:01:04.2]} 27. Rh1 {[%clk 0:00:14.8]} 27... Rg3 {[%clk 0:00:46.2]}
28. Bg5 {[%clk 0:00:13.7]} 28... Rg2+ {[%clk 0:00:44.5]} 29. Kb1 {[%clk
0:00:11.8]} 29... Bf3 {[%clk 0:00:43.7]} 30. Re1 {[%clk 0:00:10.6]} 30... Rxg5
{[%clk 0:00:27.9]} 31. hxg5 {[%clk 0:00:10.2]} 31... h4 {[%clk 0:00:28.6]} 32.
Kc2 {[%clk 0:00:08.1]} 32... h3 {[%clk 0:00:28.3]} 33. Nc3 {[%clk 0:00:03.5]}
33... h2 {[%clk 0:00:26]} 34. Kd3 {[%clk 0:00:03.8]} 34... Bxc3 {[%clk
0:00:25.8]} 35. Kxc3 {[%clk 0:00:03.3]} 35... h1=Q {[%clk 0:00:26.3]} 36. Rxh1
{[%clk 0:00:03.3]} 36... Bxh1 {[%clk 0:00:26.9]} 37. Kd3 {[%clk 0:00:03]} 37...
Kf7 {[%clk 0:00:26.4]} 38. Ke3 {[%clk 0:00:01.7]} 38... a5 {[%clk 0:00:25.3]}
0-1

[Event "Late-Titled-Tuesday-Blitz-October-24-2023"]
[Site "Chess.com"]
[Date "2023.10.24"]
[Round "4"]
[White "Cayse"]
[Black "hblanco"]
[Result "1-0"]
[WhiteElo "2878"]
[BlackElo "2741"]
[TimeControl "180+1"]
[EndTime "14:39:41 PDT"]
[Termination "Cayse won on time"]

1. e4 {[%clk 0:03:00.9]} 1... e5 {[%clk 0:02:58.5]} 2. Nf3 {[%clk 0:03:00.6]}
2... Nc6 {[%clk 0:02:59]} 3. Nc3 {[%clk 0:03:00.6]} 3... Nf6 {[%clk 0:02:58.4]}
4. a4 {[%clk 0:03:00.8]} 4... Be7 {[%clk 0:02:52.6]} 5. Bb5 {[%clk 0:02:57.5]}
5... O-O {[%clk 0:02:49.1]} 6. O-O {[%clk 0:02:57.2]} 6... d6 {[%clk 0:02:45.1]}
7. Bxc6 {[%clk 0:02:52.1]} 7... bxc6 {[%clk 0:02:44.8]} 8. d4 {[%clk 0:02:52.7]}
8... exd4 {[%clk 0:02:45.1]} 9. Nxd4 {[%clk 0:02:53.6]} 9... Bd7 {[%clk
0:02:45.4]} 10. Qf3 {[%clk 0:02:53.5]} 10... Rb8 {[%clk 0:02:08]} 11. h3 {[%clk
0:02:52]} 11... c5 {[%clk 0:02:07.8]} 12. Nf5 {[%clk 0:02:51]} 12... Bxf5 {[%clk
0:02:08]} 13. Qxf5 {[%clk 0:02:50.6]} 13... Nd7 {[%clk 0:02:08.9]} 14. Ra3
{[%clk 0:02:38.1]} 14... Bf6 {[%clk 0:01:47.4]} 15. Nd5 {[%clk 0:02:19.4]} 15...
Bxb2 {[%clk 0:01:26.3]} 16. Rg3 {[%clk 0:02:18.7]} 16... Be5 {[%clk 0:01:09.5]}
17. f4 {[%clk 0:01:55.4]} 17... Bd4+ {[%clk 0:01:08.7]} 18. Kh2 {[%clk
0:01:54.9]} 18... g6 {[%clk 0:01:06.3]} 19. e5 {[%clk 0:01:28.8]} 19... c6
{[%clk 0:00:53.3]} 20. Qxd7 {[%clk 0:01:23]} 20... cxd5 {[%clk 0:00:53.1]} 21.
Qxd8 {[%clk 0:01:23]} 21... Rfxd8 {[%clk 0:00:51.5]} 22. c3 {[%clk 0:01:21.8]}
22... Bxe5 {[%clk 0:00:30.9]} 23. fxe5 {[%clk 0:01:21.3]} 23... dxe5 {[%clk
0:00:31.8]} 24. Bg5 {[%clk 0:01:20.3]} 24... Rd6 {[%clk 0:00:30.8]} 25. Be7
{[%clk 0:01:10.5]} 25... Rc6 {[%clk 0:00:30.5]} 26. Rg5 {[%clk 0:01:10.1]} 26...
Re6 {[%clk 0:00:06.8]} 27. Bxc5 {[%clk 0:01:08.6]} 27... Rc8 {[%clk 0:00:07.1]}
28. Bxa7 {[%clk 0:01:04.2]} 28... Rxc3 {[%clk 0:00:06.7]} 29. a5 {[%clk
0:01:04.3]} 29... d4 {[%clk 0:00:06]} 30. Rg3 {[%clk 0:00:57.6]} 30... d3 {[%clk
0:00:06.2]} 31. Ra1 {[%clk 0:00:44.9]} 31... e4 {[%clk 0:00:06.6]} 32. Bb6
{[%clk 0:00:42]} 32... Rb3 {[%clk 0:00:05.9]} 33. Re3 {[%clk 0:00:32.9]} 33...
f5 {[%clk 0:00:05.4]} 34. Kg1 {[%clk 0:00:17.2]} 34... f4 {[%clk 0:00:04.9]} 35.
a6 {[%clk 0:00:12.9]} 1-0

[Event "Late-Titled-Tuesday-Blitz-October-24-2023"]
[Site "Chess.com"]
[Date "2023.10.24"]
[Round "4"]
[White "twitchTriniCupid"]
[Black "Elbebiber"]
[Result "1-0"]
[WhiteElo "2341"]
[BlackElo "2137"]
[TimeControl "180+1"]
[EndTime "14:39:41 PDT"]
[Termination "twitchTriniCupid won on time"]

1. g3 {[%clk 0:02:55.5]} 1... d5 {[%clk 0:02:58.7]} 2. Bg2 {[%clk 0:02:56.4]}
2... c6 {[%clk 0:02:59.2]} 3. d4 {[%clk 0:02:54.8]} 3... Bf5 {[%clk 0:02:56.3]}
4. c3 {[%clk 0:02:52.2]} 4... e6 {[%clk 0:02:56.2]} 5. Nd2 {[%clk 0:02:51.9]}
5... Nf6 {[%clk 0:02:54.8]} 6. f3 {[%clk 0:02:48.8]} 6... Bg6 {[%clk 0:02:48]}
7. e4 {[%clk 0:02:47]} 7... Be7 {[%clk 0:02:41.4]} 8. Ne2 {[%clk 0:02:39.8]}
8... O-O {[%clk 0:02:28.3]} 9. O-O {[%clk 0:02:39.5]} 9... Nbd7 {[%clk
0:02:21.2]} 10. a4 {[%clk 0:02:31.1]} 10... h6 {[%clk 0:02:10]} 11. a5 {[%clk
0:01:41.2]} 11... Qc7 {[%clk 0:02:06.7]} 12. Nf4 {[%clk 0:01:32.7]} 12... Bh7
{[%clk 0:02:01.6]} 13. Qe2 {[%clk 0:01:26.9]} 13... dxe4 {[%clk 0:01:16.1]} 14.
Nxe4 {[%clk 0:00:59.1]} 14... Nxe4 {[%clk 0:01:12.8]} 15. fxe4 {[%clk
0:00:58.9]} 15... e5 {[%clk 0:00:48.5]} 16. Nh5 {[%clk 0:00:58.7]} 16... Bg6
{[%clk 0:00:34.9]} 17. g4 {[%clk 0:00:33.4]} 17... Nf6 {[%clk 0:00:26.5]} 18.
Ng3 {[%clk 0:00:25.9]} 18... Rfe8 {[%clk 0:00:18]} 19. Nf5 {[%clk 0:00:25.2]}
19... Bf8 {[%clk 0:00:17.5]} 20. h4 {[%clk 0:00:22.2]} 20... Rad8 {[%clk
0:00:16.1]} 21. h5 {[%clk 0:00:18.5]} 21... Bh7 {[%clk 0:00:15.4]} 22. dxe5
{[%clk 0:00:15.3]} 22... Qxe5 {[%clk 0:00:14.7]} 23. Bf4 {[%clk 0:00:15.5]}
23... Qe6 {[%clk 0:00:14.1]} 24. g5 {[%clk 0:00:14.7]} 24... hxg5 {[%clk
0:00:13.9]} 25. Bxg5 {[%clk 0:00:14.7]} 25... Bxf5 {[%clk 0:00:10.8]} 26. Bxf6
{[%clk 0:00:11.8]} 26... Qxf6 {[%clk 0:00:09.1]} 27. Qc4 {[%clk 0:00:08.1]}
27... Be6 {[%clk 0:00:06.2]} 28. Qa4 {[%clk 0:00:06.1]} 28... Qe5 {[%clk
0:00:04.4]} 29. Rf3 {[%clk 0:00:05.5]} 29... a6 {[%clk 0:00:02.5]} 30. Raf1
{[%clk 0:00:04.9]} 30... f6 {[%clk 0:00:02.5]} 31. h6 {[%clk 0:00:03.8]} 1-0

[Event "Late-Titled-Tuesday-Blitz-October-24-2023"]
[Site "Chess.com"]
[Date "2023.10.24"]
[Round "4"]
[White "jup1978"]
[Black "mind1mover"]
[Result "1-0"]
[WhiteElo "2501"]
[BlackElo "2794"]
[TimeControl "180+1"]
[EndTime "14:39:42 PDT"]
[Termination "jup1978 won by checkmate"]

1. d4 {[%clk 0:02:33.5]} 1... d5 {[%clk 0:02:59]} 2. c4 {[%clk 0:02:32.5]} 2...
dxc4 {[%clk 0:02:59.6]} 3. Nf3 {[%clk 0:02:32.1]} 3... a6 {[%clk 0:02:59.5]} 4.
e3 {[%clk 0:02:32.5]} 4... Bg4 {[%clk 0:02:59.3]} 5. Bxc4 {[%clk 0:02:29.9]}
5... e6 {[%clk 0:02:59.7]} 6. O-O {[%clk 0:02:28.3]} 6... Nc6 {[%clk 0:02:59.5]}
7. b3 {[%clk 0:02:25.8]} 7... Nf6 {[%clk 0:02:58.9]} 8. Bb2 {[%clk 0:02:25.2]}
8... Bd6 {[%clk 0:02:59.5]} 9. h3 {[%clk 0:02:21.9]} 9... Bh5 {[%clk 0:02:59.4]}
10. Be2 {[%clk 0:02:21.4]} 10... Qe7 {[%clk 0:02:57.7]} 11. Nfd2 {[%clk
0:02:16.7]} 11... Bg6 {[%clk 0:02:56.3]} 12. Nc4 {[%clk 0:02:15.2]} 12... O-O
{[%clk 0:02:48.8]} 13. Bd3 {[%clk 0:02:12.3]} 13... Bh5 {[%clk 0:02:44.3]} 14.
Be2 {[%clk 0:02:11.7]} 14... Bg6 {[%clk 0:02:43.7]} 15. Bd3 {[%clk 0:02:11.8]}
15... Rad8 {[%clk 0:02:38.5]} 16. Bxg6 {[%clk 0:02:10.5]} 16... hxg6 {[%clk
0:02:39.4]} 17. Nxd6 {[%clk 0:02:09.6]} 17... cxd6 {[%clk 0:02:39]} 18. Nd2
{[%clk 0:02:07.4]} 18... Nd5 {[%clk 0:02:34]} 19. Qe2 {[%clk 0:01:59.6]} 19...
f5 {[%clk 0:02:33.9]} 20. Nc4 {[%clk 0:01:52.5]} 20... b5 {[%clk 0:02:31.5]} 21.
Nd2 {[%clk 0:01:50.1]} 21... g5 {[%clk 0:02:17.3]} 22. Rac1 {[%clk 0:01:49.6]}
22... Rc8 {[%clk 0:02:17]} 23. e4 {[%clk 0:01:39.4]} 23... Nf4 {[%clk
0:02:15.4]} 24. Qe3 {[%clk 0:01:39.4]} 24... fxe4 {[%clk 0:02:12.3]} 25. Nxe4
{[%clk 0:01:40.3]} 25... Nb4 {[%clk 0:02:12.5]} 26. a3 {[%clk 0:01:32.8]} 26...
Nbd5 {[%clk 0:02:05.5]} 27. Qd2 {[%clk 0:01:27.3]} 27... Rfd8 {[%clk 0:01:24.4]}
28. Rxc8 {[%clk 0:01:26.1]} 28... Rxc8 {[%clk 0:01:25.3]} 29. Rc1 {[%clk
0:01:24.2]} 29... Rd8 {[%clk 0:01:20.2]} 30. a4 {[%clk 0:01:08.9]} 30... b4
{[%clk 0:01:16.1]} 31. Re1 {[%clk 0:01:01.7]} 31... Qf7 {[%clk 0:01:15.5]} 32.
Nxg5 {[%clk 0:00:58.6]} 32... Qg6 {[%clk 0:01:13.3]} 33. h4 {[%clk 0:00:56.1]}
33... Rc8 {[%clk 0:01:12.9]} 34. Bc1 {[%clk 0:00:47.1]} 34... Rc2 {[%clk
0:01:09.1]} 35. Qd1 {[%clk 0:00:47.3]} 35... Nc3 {[%clk 0:00:33.8]} 36. Qf3
{[%clk 0:00:39]} 36... Nfd5 {[%clk 0:00:20.6]} 37. Rxe6 {[%clk 0:00:27.7]} 37...
Rxc1+ {[%clk 0:00:19]} 38. Kh2 {[%clk 0:00:28.3]} 38... Qf6 {[%clk 0:00:01.6]}
39. Re8+ {[%clk 0:00:24.6]} 39... Qf8 {[%clk 0:00:01.1]} 40. Rxf8# {[%clk
0:00:23.9]} 1-0

[Event "Late-Titled-Tuesday-Blitz-October-24-2023"]
[Site "Chess.com"]
[Date "2023.10.24"]
[Round "4"]
[White "Inepton_Fermion"]
[Black "dosto07"]
[Result "0-1"]
[WhiteElo "2358"]
[BlackElo "2522"]
[TimeControl "180+1"]
[EndTime "14:39:42 PDT"]
[Termination "dosto07 won on time"]

1. Nf3 {[%clk 0:02:12.9]} 1... d5 {[%clk 0:03:00]} 2. b3 {[%clk 0:02:12.8]} 2...
Nf6 {[%clk 0:03:00.2]} 3. Bb2 {[%clk 0:02:13.1]} 3... Bg4 {[%clk 0:03:00.3]} 4.
d3 {[%clk 0:02:10.4]} 4... Nbd7 {[%clk 0:02:59.9]} 5. Nbd2 {[%clk 0:02:10.6]}
5... e6 {[%clk 0:03:00]} 6. h3 {[%clk 0:02:10.8]} 6... Bh5 {[%clk 0:02:59.1]} 7.
e4 {[%clk 0:02:03]} 7... dxe4 {[%clk 0:02:51.8]} 8. dxe4 {[%clk 0:02:03.9]} 8...
Bb4 {[%clk 0:02:51.1]} 9. Be2 {[%clk 0:01:59.5]} 9... O-O {[%clk 0:02:33.5]} 10.
O-O {[%clk 0:01:58]} 10... Bg6 {[%clk 0:02:30.9]} 11. Nh4 {[%clk 0:01:38.2]}
11... Bxd2 {[%clk 0:02:26.7]} 12. Nxg6 {[%clk 0:01:36.7]} 12... hxg6 {[%clk
0:02:25.4]} 13. Qxd2 {[%clk 0:01:37]} 13... Nxe4 {[%clk 0:02:21.7]} 14. Qb4
{[%clk 0:01:36.7]} 14... Nd6 {[%clk 0:02:16.9]} 15. Bf3 {[%clk 0:01:31]} 15...
a5 {[%clk 0:02:13]} 16. Qc3 {[%clk 0:01:28.2]} 16... Qf6 {[%clk 0:02:12.1]} 17.
Qxc7 {[%clk 0:01:26.9]} 17... Qxb2 {[%clk 0:02:11.6]} 18. Qxd6 {[%clk
0:01:25.8]} 18... Rad8 {[%clk 0:01:53]} 19. c4 {[%clk 0:01:23.5]} 19... Ne5
{[%clk 0:01:51.5]} 20. Qb6 {[%clk 0:01:06]} 20... Nxf3+ {[%clk 0:01:48.5]} 21.
gxf3 {[%clk 0:01:06.9]} 21... Rd2 {[%clk 0:01:04.7]} 22. Rad1 {[%clk 0:00:35.9]}
22... Qxa2 {[%clk 0:00:43.4]} 23. Rxd2 {[%clk 0:00:31.6]} 23... Qxd2 {[%clk
0:00:43.2]} 24. Qxb7 {[%clk 0:00:32.3]} 24... Rd8 {[%clk 0:00:35.7]} 25. Qe4
{[%clk 0:00:20.5]} 25... Rd4 {[%clk 0:00:30.4]} 26. Qe5 {[%clk 0:00:14.3]} 26...
Qc3 {[%clk 0:00:20.5]} 27. Qb8+ {[%clk 0:00:10.2]} 27... Kh7 {[%clk 0:00:19.9]}
28. Kg2 {[%clk 0:00:07.5]} 28... Rd3 {[%clk 0:00:18.5]} 29. Qf4 {[%clk
0:00:04.1]} 29... Qxb3 {[%clk 0:00:15.8]} 30. Qh4+ {[%clk 0:00:04.3]} 30... Kg8
{[%clk 0:00:15]} 31. Qf4 {[%clk 0:00:02.4]} 31... Qb7 {[%clk 0:00:12.8]} 32. Rc1
{[%clk 0:00:01.6]} 32... e5 {[%clk 0:00:12.8]} 33. Qg3 {[%clk 0:00:01.5]} 33...
e4 {[%clk 0:00:12.5]} 34. fxe4 {[%clk 0:00:01.1]} 34... Rxg3+ {[%clk 0:00:10.4]}
0-1

[Event "Late-Titled-Tuesday-Blitz-October-24-2023"]
[Site "Chess.com"]
[Date "2023.10.24"]
[Round "4"]
[White "Mbneu"]
[Black "iJueles"]
[Result "0-1"]
[WhiteElo "2253"]
[BlackElo "2468"]
[TimeControl "180+1"]
[EndTime "14:39:44 PDT"]
[Termination "iJueles won by resignation"]

1. d4 {[%clk 0:02:59.5]} 1... Nf6 {[%clk 0:02:59.6]} 2. c4 {[%clk 0:02:59.7]}
2... e6 {[%clk 0:02:59.5]} 3. Nc3 {[%clk 0:02:58.3]} 3... Bb4 {[%clk 0:02:59.1]}
4. Bg5 {[%clk 0:02:58]} 4... c5 {[%clk 0:02:57.8]} 5. d5 {[%clk 0:02:58.6]} 5...
Bxc3+ {[%clk 0:02:56.9]} 6. bxc3 {[%clk 0:02:57.8]} 6... h6 {[%clk 0:02:56.6]}
7. Bh4 {[%clk 0:02:56.5]} 7... d6 {[%clk 0:02:55.2]} 8. e3 {[%clk 0:02:54.3]}
8... e5 {[%clk 0:02:53.8]} 9. Be2 {[%clk 0:02:45.5]} 9... b6 {[%clk 0:02:51.6]}
10. Nf3 {[%clk 0:02:44.8]} 10... g5 {[%clk 0:02:43.2]} 11. Bg3 {[%clk 0:02:44]}
11... Ne4 {[%clk 0:02:40.1]} 12. Qc1 {[%clk 0:02:36.6]} 12... Bf5 {[%clk
0:02:30.3]} 13. Nd2 {[%clk 0:02:28.7]} 13... Nd7 {[%clk 0:02:23.5]} 14. Nxe4
{[%clk 0:02:08.2]} 14... Bxe4 {[%clk 0:02:24.4]} 15. O-O {[%clk 0:02:07.7]}
15... h5 {[%clk 0:02:14.5]} 16. f4 {[%clk 0:01:40.6]} 16... h4 {[%clk
0:02:13.7]} 17. Be1 {[%clk 0:01:39.3]} 17... gxf4 {[%clk 0:02:04.7]} 18. exf4
{[%clk 0:01:38.6]} 18... Rg8 {[%clk 0:02:00.9]} 19. Bf3 {[%clk 0:01:34.1]} 19...
Bd3 {[%clk 0:01:48.5]} 20. Rf2 {[%clk 0:01:16.5]} 20... e4 {[%clk 0:01:35.3]}
21. Be2 {[%clk 0:01:07.3]} 21... Bxe2 {[%clk 0:01:34.1]} 22. Rxe2 {[%clk
0:01:06.6]} 22... f5 {[%clk 0:01:34.6]} 23. Re3 {[%clk 0:01:00]} 23... Qf6
{[%clk 0:01:31.4]} 24. Rh3 {[%clk 0:00:57.6]} 24... Rg4 {[%clk 0:01:30.1]} 25.
Qe3 {[%clk 0:00:55.2]} 25... O-O-O {[%clk 0:01:27]} 26. a4 {[%clk 0:00:53.6]}
26... Rdg8 {[%clk 0:01:27]} 27. g3 {[%clk 0:00:52.2]} 27... a5 {[%clk
0:01:19.5]} 28. Ra2 {[%clk 0:00:44]} 28... Qh6 {[%clk 0:01:07.5]} 29. Rg2 {[%clk
0:00:40.7]} 29... Ne5 {[%clk 0:00:59.3]} 30. Rb2 {[%clk 0:00:17.8]} 30... Kc7
{[%clk 0:00:49.7]} 31. Kh1 {[%clk 0:00:16.8]} 31... Nxc4 {[%clk 0:00:43.2]} 32.
Qe2 {[%clk 0:00:13.6]} 32... Nxb2 {[%clk 0:00:40.7]} 33. Qxb2 {[%clk 0:00:13.3]}
33... Qxf4 {[%clk 0:00:38.6]} 34. Bf2 {[%clk 0:00:11]} 34... Qf3+ {[%clk
0:00:38.3]} 35. Kg1 {[%clk 0:00:10.5]} 35... e3 {[%clk 0:00:37.6]} 36. Be1
{[%clk 0:00:09.3]} 36... e2 {[%clk 0:00:34.7]} 37. Bf2 {[%clk 0:00:09.3]} 37...
hxg3 {[%clk 0:00:33.8]} 38. hxg3 {[%clk 0:00:08.8]} 38... f4 {[%clk 0:00:33.4]}
39. Qb5 {[%clk 0:00:06.8]} 39... Rxg3+ {[%clk 0:00:23.9]} 40. Bxg3 {[%clk
0:00:06]} 40... Rxg3+ {[%clk 0:00:24.1]} 41. Rxg3 {[%clk 0:00:05.9]} 41... Qxg3+
{[%clk 0:00:24.3]} 0-1

[Event "Late-Titled-Tuesday-Blitz-October-24-2023"]
[Site "Chess.com"]
[Date "2023.10.24"]
[Round "4"]
[White "dennisodessa"]
[Black "dianamirza"]
[Result "1-0"]
[WhiteElo "2548"]
[BlackElo "2005"]
[TimeControl "180+1"]
[EndTime "14:39:48 PDT"]
[Termination "dennisodessa won on time"]

1. c4 {[%clk 0:03:00]} 1... c5 {[%clk 0:02:59.7]} 2. g3 {[%clk 0:02:59]} 2...
Nc6 {[%clk 0:02:59]} 3. Bg2 {[%clk 0:02:59.9]} 3... g6 {[%clk 0:02:59.9]} 4. Nf3
{[%clk 0:03:00.8]} 4... Bg7 {[%clk 0:03:00.4]} 5. O-O {[%clk 0:02:59]} 5... e6
{[%clk 0:03:01.1]} 6. e3 {[%clk 0:02:54.6]} 6... Nge7 {[%clk 0:03:01.1]} 7. d4
{[%clk 0:02:55]} 7... O-O {[%clk 0:03:02]} 8. Nc3 {[%clk 0:02:54.9]} 8... cxd4
{[%clk 0:03:00.7]} 9. Nxd4 {[%clk 0:02:53.6]} 9... a6 {[%clk 0:02:54.8]} 10.
Nde2 {[%clk 0:02:49.9]} 10... Qc7 {[%clk 0:02:45.7]} 11. b3 {[%clk 0:02:44.5]}
11... Rb8 {[%clk 0:02:22.1]} 12. Bb2 {[%clk 0:02:43.5]} 12... b5 {[%clk
0:02:20.3]} 13. c5 {[%clk 0:02:31.4]} 13... b4 {[%clk 0:02:05.8]} 14. Na4 {[%clk
0:02:30.9]} 14... Bxb2 {[%clk 0:01:54.1]} 15. Nxb2 {[%clk 0:02:31.8]} 15... Bb7
{[%clk 0:01:47.1]} 16. Rc1 {[%clk 0:02:26.1]} 16... a5 {[%clk 0:01:47.3]} 17.
Nc4 {[%clk 0:02:25.3]} 17... Nf5 {[%clk 0:01:22]} 18. e4 {[%clk 0:01:51.5]}
18... Ng7 {[%clk 0:01:16.1]} 19. f4 {[%clk 0:01:51.5]} 19... e5 {[%clk 0:01:11]}
20. Nd6 {[%clk 0:01:43.2]} 20... Ba6 {[%clk 0:01:06.5]} 21. f5 {[%clk
0:01:42.9]} 21... f6 {[%clk 0:01:02.8]} 22. Rf2 {[%clk 0:01:33.1]} 22... Nd8
{[%clk 0:00:51.4]} 23. g4 {[%clk 0:01:19.6]} 23... Nc6 {[%clk 0:00:51]} 24. Qd5+
{[%clk 0:01:18.6]} 24... Kh8 {[%clk 0:00:41.8]} 25. Nf7+ {[%clk 0:01:18.5]}
25... Rxf7 {[%clk 0:00:42.1]} 26. Qxf7 {[%clk 0:01:19.4]} 26... g5 {[%clk
0:00:37.7]} 27. Bf1 {[%clk 0:01:16]} 27... Qd8 {[%clk 0:00:29.8]} 28. Rd1 {[%clk
0:01:13.3]} 28... Bxe2 {[%clk 0:00:28.5]} 29. Rxd7 {[%clk 0:01:10.6]} 29... Qf8
{[%clk 0:00:16.9]} 30. Bxe2 {[%clk 0:01:05.9]} 30... Nd4 {[%clk 0:00:14.8]} 31.
Qxf8+ {[%clk 0:01:05.2]} 31... Rxf8 {[%clk 0:00:14.3]} 32. Bc4 {[%clk
0:01:06.1]} 32... h5 {[%clk 0:00:11.5]} 33. h3 {[%clk 0:01:03.6]} 33... h4
{[%clk 0:00:11.6]} 34. Ra7 {[%clk 0:00:59.1]} 34... Nc6 {[%clk 0:00:10.6]} 35.
Ra6 {[%clk 0:00:59.3]} 35... Rc8 {[%clk 0:00:09.1]} 36. Kg2 {[%clk 0:00:56.3]}
36... Ne8 {[%clk 0:00:05.6]} 37. Bb5 {[%clk 0:00:56.3]} 37... Nd4 {[%clk
0:00:03.9]} 38. Bxe8 {[%clk 0:00:57.2]} 38... Rxe8 {[%clk 0:00:04]} 39. Rxa5
{[%clk 0:00:55]} 39... Rc8 {[%clk 0:00:04.1]} 40. Rd2 {[%clk 0:00:51.4]} 40...
Kg8 {[%clk 0:00:03.2]} 41. Kf2 {[%clk 0:00:51.3]} 41... Kf7 {[%clk 0:00:03.4]}
42. Ra7+ {[%clk 0:00:50.4]} 42... Ke8 {[%clk 0:00:03.7]} 43. Ra5 {[%clk
0:00:44.9]} 43... Kd7 {[%clk 0:00:03.7]} 44. Ke3 {[%clk 0:00:45.6]} 44... Kc6
{[%clk 0:00:03.6]} 45. Rxd4 {[%clk 0:00:46.3]} 45... exd4+ {[%clk 0:00:03.6]}
46. Kxd4 {[%clk 0:00:47.2]} 46... Rd8+ {[%clk 0:00:04.1]} 47. Kc4 {[%clk
0:00:47.9]} 47... Rd2 {[%clk 0:00:02.8]} 48. Ra6+ {[%clk 0:00:48]} 48... Kb7
{[%clk 0:00:02.3]} 49. Rxf6 {[%clk 0:00:48.4]} 49... Rxa2 {[%clk 0:00:02.3]} 50.
Rg6 {[%clk 0:00:47.7]} 1-0

[Event "Late-Titled-Tuesday-Blitz-October-24-2023"]
[Site "Chess.com"]
[Date "2023.10.24"]
[Round "4"]
[White "MajorCoast"]
[Black "pasteta13"]
[Result "1-0"]
[WhiteElo "2270"]
[BlackElo "2441"]
[TimeControl "180+1"]
[EndTime "14:39:54 PDT"]
[Termination "MajorCoast won on time"]

1. d4 {[%clk 0:03:00.9]} 1... Nf6 {[%clk 0:02:59.6]} 2. Nf3 {[%clk 0:02:58.7]}
2... e6 {[%clk 0:02:59.9]} 3. Bf4 {[%clk 0:02:57.8]} 3... d5 {[%clk 0:02:59.4]}
4. e3 {[%clk 0:02:57.6]} 4... Bd6 {[%clk 0:02:59.9]} 5. Bg3 {[%clk 0:02:57.4]}
5... Ne4 {[%clk 0:02:59.1]} 6. Nbd2 {[%clk 0:02:55.6]} 6... f5 {[%clk
0:02:58.7]} 7. c4 {[%clk 0:02:48.8]} 7... c5 {[%clk 0:02:56.3]} 8. Nxe4 {[%clk
0:02:39.4]} 8... fxe4 {[%clk 0:02:49.5]} 9. Bxd6 {[%clk 0:02:38.2]} 9... Qxd6
{[%clk 0:02:45.4]} 10. Ne5 {[%clk 0:02:38.2]} 10... cxd4 {[%clk 0:02:41.7]} 11.
Qh5+ {[%clk 0:02:35.1]} 11... g6 {[%clk 0:02:42]} 12. Nxg6 {[%clk 0:02:34.1]}
12... Qb4+ {[%clk 0:02:41.6]} 13. Kd1 {[%clk 0:02:29.3]} 13... dxe3 {[%clk
0:02:02.6]} 14. Nxh8+ {[%clk 0:02:12.2]} 14... Kd8 {[%clk 0:02:02.5]} 15. Qg5+
{[%clk 0:01:37.4]} 15... Kd7 {[%clk 0:01:45.9]} 16. Qg7+ {[%clk 0:01:25.9]}
16... Ke8 {[%clk 0:01:24.1]} 17. Qf7+ {[%clk 0:01:18.7]} 17... Kd8 {[%clk
0:01:23.8]} 18. Qf6+ {[%clk 0:01:16.5]} 18... Ke8 {[%clk 0:01:21.6]} 19. fxe3
{[%clk 0:01:12.8]} 19... d4 {[%clk 0:01:05.5]} 20. Qf7+ {[%clk 0:01:00]} 20...
Kd8 {[%clk 0:01:05.4]} 21. Qf6+ {[%clk 0:01:00.6]} 21... Ke8 {[%clk 0:01:05.8]}
22. Qxd4 {[%clk 0:00:54.8]} 22... Bd7 {[%clk 0:01:06.1]} 23. Be2 {[%clk
0:00:50.8]} 23... Ba4+ {[%clk 0:01:03.9]} 24. b3 {[%clk 0:00:46.3]} 24... Nc6
{[%clk 0:01:04.1]} 25. Bh5+ {[%clk 0:00:44.6]} 25... Ke7 {[%clk 0:00:49.1]} 26.
Qg7+ {[%clk 0:00:39.2]} 26... Kd6 {[%clk 0:00:48.3]} 27. Nf7+ {[%clk 0:00:37.1]}
27... Kc5 {[%clk 0:00:45.3]} 28. Qg5+ {[%clk 0:00:31.8]} 28... e5 {[%clk
0:00:30]} 29. Nxe5 {[%clk 0:00:26.2]} 29... Rd8+ {[%clk 0:00:23.5]} 30. Nd7+
{[%clk 0:00:25.1]} 30... Kd6 {[%clk 0:00:21.6]} 31. Qd5+ {[%clk 0:00:18.1]}
31... Kc7 {[%clk 0:00:20.2]} 32. Bg4 {[%clk 0:00:14.3]} 32... Qc3 {[%clk
0:00:08.1]} 33. Rc1 {[%clk 0:00:12.1]} 33... Qxe3 {[%clk 0:00:07.6]} 34. Re1
{[%clk 0:00:10.2]} 34... Qf4 {[%clk 0:00:05.6]} 35. Qxe4 {[%clk 0:00:09.8]}
35... Qd6+ {[%clk 0:00:01.9]} 36. Ke2 {[%clk 0:00:08.2]} 1-0